bitfinex-derivatives/quotes_ETHF0:USTF0_20250217
["timestamp","ask_amount","ask_price","bid_price","bid_amount"]
[1739777664195,3.22708,2683.9,2683.7,0.5791]
[1739777664396,0.74508,2683.9,2683.7,1.32422]
[1739777664595,47.30389141,2684.0,2683.7,1.32422]
[1739777664793,43.281,2684.0,2683.7,0.5791]
[1739777664997,43.281,2684.0,2683.9,3.2078]
[1739777665596,2.481,2684.0,2683.9,3.2078]
[1739777665800,0.00558597,2684.1,2684.0,0.74504]
[1739777666197,0.00558597,2684.1,2683.9,3.2078]
[1739777666393,0.00558597,2684.1,2684.0,0.74504]
[1739777666905,0.00558597,2684.1,2684.0,1.29054]
[1739777668206,2.481,2684.5,2684.4,0.74493]
[1739777668405,2.481,2684.5,2684.4,3.95273]
[1739777668704,6.35623141,2684.8,2684.4,3.2078]
[1739777668900,3.0784,2684.8,2684.6,0.74487]
[1739777669099,2.482,2684.8,2684.6,0.74487]
[1739777669605,2.482,2684.8,2684.5,1.1136]
[1739777670210,2.482,2684.8,2684.6,0.74487]
[1739777670709,3.27783141,2684.9,2684.5,1.1136]
[1739777670911,5.75783141,2684.9,2684.8,0.74482]
[1739777671102,6.50264141,2684.9,2684.7,3.2078]
[1739777671400,5.75783141,2684.9,2684.8,0.5902]
[1739777671602,6.50262141,2684.9,2684.8,0.5902]
[1739777671802,5.75783141,2684.9,2684.8,0.5902]
[1739777672007,5.75783141,2684.9,2684.7,3.2078]
[1739777672202,0.74493,2684.4,2684.3,3.7586]
[1739777672397,0.74501,2684.2,2683.9,0.5508]
[1739777672604,2.48,2684.4,2683.9,0.5508]
[1739777672605,3.27783141,2684.0,2683.9,0.5508]
[1739777672908,46.55883141,2684.0,2683.9,0.5508]
[1739777673206,43.281,2684.0,2683.9,1.29587]
[1739777673407,5.76083141,2684.3,2683.9,0.5508]
[1739777673611,5.76083141,2684.3,2684.1,3.2078]
[1739777674004,5.76083141,2684.3,2684.1,3.95281]
[1739777674304,5.76083141,2684.3,2684.1,3.2078]
[1739777674509,5.76083141,2684.3,2683.9,0.5508]
[1739777674712,5.76083141,2684.3,2684.2,0.74499]
[1739777675111,2.483,2684.3,2684.2,0.74499]
[1739777675314,2.483,2684.3,2684.2,1.31419]
[1739777675504,2.484,2684.5,2684.2,1.1438]
[1739777675705,2.484,2684.5,2684.4,3.2078]
[1739777676407,3.2289,2684.5,2684.4,3.2078]
[1739777677509,44.0289,2684.5,2684.4,3.2078]
[1739777678103,44.6123,2684.5,2684.4,3.2078]
[1739777679202,43.8674,2684.5,2684.4,3.2078]
[1739777679404,2.484,2684.5,2684.4,3.2078]
[1739777679612,2.485,2684.5,2684.4,3.2078]
[1739777679815,6.50773141,2684.5,2684.4,3.2078]
[1739777681018,5.76283141,2684.5,2684.4,3.2078]
[1739777681410,6.50773141,2684.5,2684.4,3.2078]
[1739777683014,5.76283141,2684.5,2684.1,3.2078]
[1739777683215,0.745,2684.2,2684.1,3.2078]
[1739777683410,0.5485,2684.4,2684.1,3.2078]
[1739777683611,0.74499,2684.2,2684.1,3.2078]
[1739777684007,3.27783141,2684.5,2684.1,3.2078]
[1739777684211,3.27783141,2684.5,2683.9,0.5508]
[1739777684212,2.482,2684.2,2683.9,0.5508]
[1739777684414,2.482,2684.2,2684.1,3.2078]
[1739777684719,2.482,2684.2,2684.1,3.95282]
[1739777684920,2.482,2684.2,2684.1,3.2078]
[1739777685121,3.22699,2684.2,2684.1,3.2078]
[1739777685519,0.74504,2684.0,2683.9,0.5508]
[1739777686020,0.74507,2683.9,2683.8,3.2078]
[1739777686218,3.27783141,2683.9,2683.5,3.21338597]
[1739777686521,3.27783141,2683.6,2683.5,0.00558597]
[1739777687316,3.83633141,2683.6,2683.5,0.00558597]
[1739777687522,4.58148141,2683.6,2683.5,0.00558597]
[1739777690524,3.83633141,2683.6,2683.5,0.00558597]
[1739777690830,4.58148141,2683.6,2683.5,0.00558597]
[1739777691323,3.83633141,2683.6,2683.5,0.00558597]
[1739777691523,4.58148141,2683.6,2683.5,0.00558597]
[1739777691722,3.83633141,2683.6,2683.5,0.00558597]
[1739777691925,4.58148141,2683.6,2683.5,0.00558597]
[1739777692627,3.77865,2683.6,2683.5,0.00558597]
[1739777692827,3.0335,2683.6,2683.5,0.00558597]
[1739777693025,3.77865,2683.6,2683.5,0.00558597]
[1739777693221,3.0335,2683.6,2683.5,0.00558597]
[1739777693728,2.475,2683.6,2683.5,0.00558597]
[1739777694723,3.27783141,2683.8,2683.5,0.00558597]
[1739777694921,0.74515,2683.6,2683.5,0.00558597]
[1739777698430,2.469,2683.6,2683.5,0.00558597]
[1739777699024,2.469,2683.6,2683.5,3.21338597]
[1739777699534,3.21415,2683.6,2683.5,3.21338597]
[1739777699732,2.469,2683.6,2683.5,3.21338597]
[1739777700228,3.83483141,2684.0,2683.6,0.74515]
[1739777700425,3.83483141,2684.0,2683.7,0.74512]
[1739777700426,3.21505,2684.0,2683.7,0.74512]
[1739777700627,0.74507,2683.9,2683.8,0.594]
[1739777701831,0.7451,2683.8,2683.7,0.571]
[1739777702134,5.74783141,2684.0,2683.7,0.571]
[1739777702334,6.49289141,2684.0,2683.7,1.1148]
[1739777702627,2.469,2683.9,2683.7,1.85992]
[1739777702929,2.469,2683.9,2683.7,1.1148]
[1739777703138,4.43443141,2684.3,2683.8,3.2078]
[1739777703432,2.469,2684.2,2683.8,3.2078]
[1739777703637,0.74502,2684.1,2683.8,3.2078]
[1739777704231,2.469,2684.2,2683.8,3.2078]
[1739777704430,0.74503,2684.1,2683.8,3.9529]
[1739777704830,0.74502,2684.1,2683.8,3.9529]
[1739777705033,0.74507,2684.0,2683.8,3.2078]
[1739777705235,2.469,2684.2,2683.8,3.2078]
[1739777705430,2.469,2684.2,2683.8,3.95288]
[1739777705848,2.469,2684.2,2683.8,3.2078]
[1739777706134,0.74506,2684.0,2683.8,3.2078]
[1739777706436,0.74507,2683.9,2683.8,3.2078]
[1739777706738,2.469,2684.2,2683.8,3.2078]
[1739777707129,0.74502,2684.1,2683.8,3.95289]
[1739777707329,2.469,2684.2,2683.8,3.2078]
[1739777707543,0.74505,2684.0,2683.8,3.95288]
[1739777707833,0.74503,2684.1,2683.8,3.95288]
[1739777708043,2.469,2684.2,2683.9,0.74507]
[1739777708335,2.469,2684.2,2683.8,3.95288]
[1739777708635,0.74505,2684.0,2683.8,3.95288]
[1739777708835,2.469,2684.2,2683.8,3.2078]
[1739777709036,3.214,2684.2,2683.9,0.74505]
[1739777709235,0.74503,2684.1,2683.9,0.74505]
[1739777709432,0.74507,2683.9,2683.8,3.2078]
[1739777709638,0.74506,2684.0,2683.8,3.95289]
[1739777709935,0.74504,2684.1,2683.9,0.74506]
[1739777710535,2.469,2684.2,2683.8,3.2078]
[1739777710736,2.469,2684.2,2683.9,0.74507]
[1739777710931,2.469,2684.2,2683.8,3.2078]
[1739777711132,0.74507,2683.9,2683.8,3.2078]
[1739777713031,3.27783141,2684.0,2683.8,3.2078]
[1739777713230,4.02288141,2684.0,2683.8,3.2078]
[1739777713435,0.74507,2683.9,2683.8,3.2078]
[1739777713631,0.74503,2684.1,2683.8,3.95289]
[1739777713839,2.469,2684.2,2683.8,3.2078]
[1739777714135,2.469,2684.2,2683.9,0.5719]
[1739777714346,0.74502,2684.1,2683.9,0.5719]
[1739777714536,2.469,2684.2,2683.9,0.5719]
[1739777714840,0.74504,2684.0,2683.9,0.5719]
[1739777715139,3.214,2684.2,2683.9,1.31696]
[1739777715338,3.214,2684.2,2684.1,3.2078]
[1739777715640,2.469,2684.2,2684.1,3.2078]
[1739777715937,3.21399,2684.2,2684.1,3.2078]
[1739777716539,0.74499,2684.2,2684.1,3.2078]
[1739777716839,3.20099,2684.2,2684.1,3.2078]
[1739777718840,0.74507,2683.9,2683.8,3.2078]
[1739777719035,4.02290141,2683.9,2683.8,3.2078]
[1739777725047,0.74507,2683.9,2683.8,3.2078]
[1739777726043,0.74515,2683.6,2683.5,0.00558597]
[1739777726242,6.47798141,2683.6,2683.5,0.00558597]
[1739777728046,6.47798141,2683.6,2683.0,3.7782]
[1739777728047,11.73283141,2683.6,2683.0,3.2078]
[1739777728239,4.02312141,2683.1,2683.0,3.2078]
[1739777728548,6.47812141,2683.1,2683.0,3.2078]
[1739777729749,6.77624422,2683.1,2683.0,3.2078]
[1739777730042,6.47812141,2683.1,2683.0,3.2078]
[1739777730348,5.73283141,2683.1,2683.0,3.2078]
[1739777730541,6.47812141,2683.1,2683.0,3.2078]
[1739777731148,1.29343597,2683.3,2683.0,3.2078]
[1739777731342,2.455,2683.2,2683.0,5.04941]
[1739777731646,2.455,2683.2,2683.1,0.74528]
[1739777732044,2.455,2683.2,2683.0,5.0494]
[1739777732249,0.00558597,2683.3,2683.2,0.74527]
[1739777732846,2.457,2683.6,2683.4,0.74519]
[1739777733039,2.457,2683.6,2683.5,1.1616]
[1739777733440,3.20215,2683.6,2683.5,1.1616]
[1739777734439,3.20015,2683.6,2683.5,1.1616]
[1739777734644,2.455,2683.6,2683.5,1.1616]
[1739777735948,2.455,2683.6,2683.5,1.7323]
[1739777736852,2.455,2683.6,2683.5,2.47748]
[1739777738153,3.20015,2683.6,2683.5,1.7323]
[1739777739154,3.20015,2683.6,2683.5,0.5707]
[1739777739551,3.74475,2683.6,2683.5,0.5707]
[1739777741649,3.74475,2683.6,2683.4,3.2078]
[1739777741650,2.9996,2683.6,2683.4,3.2078]
[1739777741856,2.9996,2683.6,2683.1,3.7896]
[1739777742058,0.74527,2683.2,2683.1,3.7896]
[1739777742263,3.20027,2683.2,2683.1,3.7896]
[1739777743161,3.20027,2683.2,2683.1,3.2078]
[1739777743362,3.74527,2683.2,2683.1,3.2078]
[1739777747767,3.20027,2683.2,2683.1,3.2078]
[1739777752067,3.27783141,2683.3,2683.1,3.2078]
[1739777752371,4.02308141,2683.3,2683.2,0.5821]
[1739777752571,4.02308141,2683.3,2683.2,1.6961]
[1739777752572,6.47808141,2683.3,2683.2,1.6961]
[1739777753465,40.8,2683.5,2683.2,1.6961]
[1739777753671,2.455,2683.4,2683.2,1.6961]
[1739777755171,2.455,2683.4,2683.2,2.44136]
[1739777755972,3.20021,2683.4,2683.2,2.44136]
[1739777756174,2.455,2683.4,2683.2,1.6961]
[1739777756770,0.74524,2683.3,2683.2,1.1462]
[1739777757166,1.29564,2683.3,2683.2,1.1462]
[1739777757373,0.5504,2683.3,2683.2,1.1462]
[1739777758278,0.5504,2683.3,2683.1,3.2078]
[1739777758475,4.02310141,2683.2,2683.1,3.2078]
[1739777758979,4.59000141,2683.2,2683.1,3.2078]
[1739777761279,0.74535,2682.9,2682.8,0.00558597]
[1739777761577,3.27783141,2682.7,2682.1,4.3555]
[1739777761773,3.27783141,2682.3,2682.1,4.3555]
[1739777761974,5.73283141,2682.3,2682.1,3.2078]
[1739777762180,0.74554,2682.2,2682.1,3.2078]
[1739777762474,0.5944,2682.2,2682.1,3.2078]
[1739777762674,0.595,2682.6,2682.1,3.2078]
[1739777762675,4.61827141,2682.6,2682.1,3.2078]
[1739777762982,0.00558597,2682.4,2682.2,0.5441]
[1739777763278,0.00558597,2682.4,2682.3,0.5571]
[1739777763478,2.46558597,2682.4,2682.3,1.30262]
[1739777763779,0.00558597,2682.4,2682.3,1.30262]
[1739777764478,2.459,2682.5,2682.3,0.5571]
[1739777764675,3.82113141,2683.1,2682.4,3.2078]
[1739777764876,3.27783141,2683.4,2682.8,0.74536]
[1739777765084,0.74528,2683.2,2682.9,0.5441]
[1739777765279,0.74528,2683.2,2682.9,1.1028]
[1739777765479,0.74528,2683.2,2683.0,3.2078]
[1739777765670,2.46558597,2683.3,2683.0,3.2078]
[1739777765877,0.00558597,2683.3,2683.0,3.2078]
[1739777766371,0.00558597,2683.3,2683.1,0.74529]
[1739777766576,0.00558597,2683.3,2683.0,3.2078]
[1739777766771,0.00558597,2683.3,2683.1,0.74528]
[1739777767179,0.00558597,2683.3,2683.0,3.2078]
[1739777767580,0.00558597,2683.3,2683.2,0.74527]
[1739777768083,0.00558597,2683.3,2683.1,0.5871]
[1739777768784,0.00558597,2683.3,2683.2,0.74527]
[1739777768983,0.00558597,2683.3,2683.1,0.5871]
[1739777769786,0.74527,2683.2,2683.1,0.5871]
[1739777770278,0.74529,2683.1,2683.0,3.2078]
[1739777770680,0.76596583,2683.1,2683.0,3.2078]
[1739777771678,4.04379724,2683.1,2683.0,3.2078]
[1739777772283,3.29850724,2683.1,2683.0,3.2078]
[1739777773084,0.02067583,2683.1,2683.0,3.2078]
[1739777773282,3.20828,2683.2,2683.0,3.2078]
[1739777773479,0.02955069,2683.1,2683.0,3.2078]
[1739777773683,0.02955069,2683.1,2683.0,3.95312]
[1739777774081,0.02955069,2683.1,2683.0,3.2078]
[1739777774285,0.02955069,2683.1,2683.0,3.95312]
[1739777777086,0.02955069,2683.1,2683.0,9.95312]
[1739777777493,0.00558597,2683.3,2683.0,9.95312]
[1739777777494,0.00558597,2683.3,2683.2,0.74527]
[1739777778689,0.00558597,2683.3,2683.1,1.31018]
[1739777778885,0.00558597,2683.3,2683.2,0.74527]
[1739777779693,0.00558597,2683.3,2683.2,6.74527]
[1739777780193,0.00558597,2683.3,2683.2,0.74527]
[1739777780389,0.00558597,2683.3,2683.1,1.31018]
[1739777780695,0.75083597,2683.3,2683.1,0.5649]
[1739777780888,0.74527,2683.2,2683.1,0.5649]
[1739777781192,0.74529,2683.1,2683.0,3.2078]
[1739777781786,1.33408,2683.2,2683.0,3.2078]
[1739777781993,1.33408,2683.2,2683.0,3.95312]
[1739777782392,0.74529,2683.1,2683.0,3.95312]
[1739777783497,0.74529,2683.1,2683.0,3.2078]
[1739777784392,0.5888,2683.2,2683.0,3.95312]
[1739777784590,1.33408,2683.2,2683.0,3.95312]
[1739777784895,1.33408,2683.2,2683.0,3.95311]
[1739777785295,0.5888,2683.2,2683.0,3.2078]
[1739777785491,1.33408,2683.2,2683.0,3.95311]
[1739777785993,0.00558597,2683.3,2683.0,3.2078]
[1739777786297,0.75083597,2683.3,2683.1,0.74528]
[1739777786492,0.74528,2683.2,2683.0,3.2078]
[1739777786692,0.75083597,2683.3,2683.0,3.2078]
[1739777786895,0.00558597,2683.3,2683.1,0.74529]
[1739777787091,0.74527,2683.2,2683.1,0.5914]
[1739777788292,0.00558597,2683.3,2683.1,1.33668]
[1739777788490,0.00558597,2683.3,2683.1,0.5914]
[1739777788798,0.00558597,2683.3,2683.2,0.74527]
[1739777789493,0.75082597,2683.3,2683.1,0.5914]
[1739777789696,0.75082597,2683.3,2683.1,1.33667]
[1739777789900,0.00558597,2683.3,2683.2,0.74527]
[1739777791092,0.75082597,2683.3,2683.2,0.74527]
[1739777791294,0.75082597,2683.3,2683.1,1.33667]
[1739777791592,0.00558597,2683.3,2683.2,0.74527]
[1739777795797,0.75082597,2683.3,2683.1,0.5914]
[1739777796003,0.75083597,2683.3,2683.2,0.74527]
[1739777796197,0.75083597,2683.3,2683.1,1.33667]
[1739777796399,0.75083597,2683.3,2683.1,0.5914]
[1739777796605,0.74527,2683.2,2683.1,1.33668]
[1739777796910,0.74527,2683.2,2683.1,1.33669]
[1739777797102,0.00558597,2683.3,2683.2,0.74527]
[1739777797306,0.75084597,2683.3,2683.1,1.33667]
[1739777797510,0.74527,2683.2,2683.1,0.5914]
[1739777798006,1.33547,2683.2,2683.1,1.33669]
[1739777798206,0.5902,2683.2,2683.1,1.33669]
[1739777799011,0.00558597,2683.3,2683.1,0.5914]
[1739777799199,0.00558597,2683.3,2683.2,0.74527]
[1739777800512,0.74527,2683.2,2683.1,0.5914]
[1739777800712,0.00558597,2683.3,2683.1,0.5914]
[1739777801009,0.75083597,2683.3,2683.2,0.74527]
[1739777801200,0.00558597,2683.3,2683.2,0.74527]
[1739777817322,0.58418597,2683.3,2683.2,0.74527]
[1739777821124,0.00558597,2683.3,2683.2,0.74527]
[1739777821325,0.00558597,2683.3,2683.2,1.28357]
[1739777822329,0.5542,2683.9,2683.3,1.86303]
[1739777822527,0.5542,2683.9,2683.8,3.9529]
[1739777822921,0.5768,2684.0,2683.9,0.74507]
[1739777823119,0.5555,2684.3,2683.8,11.10635892]
[1739777823320,0.5555,2684.3,2684.2,3.95279]
[1739777824122,0.55098597,2684.5,2684.4,0.74493]
[1739777828238,0.55098597,2684.5,2684.2,3.2078]
[1739777828541,0.55098597,2684.5,2684.4,0.74493]
[1739777830138,0.00558597,2684.5,2684.4,0.74493]
[1739777830454,0.34946,2684.7,2684.6,0.74488]
[1739777830742,0.34946,2684.7,2684.6,3.95268]
[1739777831040,1.1203,2685.2,2684.6,3.2078]
[1739777831241,3.5743,2685.2,2685.0,3.2078]
[1739777831442,0.74474,2685.1,2685.0,3.2078]
[1739777831642,1.32704,2685.1,2685.0,3.2078]
[1739777832352,1.12588597,2685.2,2685.1,0.74474]
[1739777832639,1.87060597,2685.2,2685.0,3.95255]
[1739777832943,1.12588597,2685.2,2685.0,3.95255]
[1739777833139,1.12588597,2685.2,2685.1,0.74474]
[1739777833539,1.12588597,2685.2,2685.0,3.2078]
[1739777833745,1.12588597,2685.2,2685.1,0.74474]
[1739777834440,1.12588597,2685.2,2685.0,3.2078]
[1739777834743,1.12588597,2685.2,2685.1,0.74474]
[1739777834953,0.00558597,2685.2,2685.1,1.88684]
[1739777836244,0.00558597,2685.2,2685.1,9.63214345]
[1739777836841,0.5537,2685.5,2685.1,8.88740345]
[1739777837144,0.74474,2685.1,2685.0,3.2078]
[1739777837837,1.33574,2685.1,2685.0,3.2078]
[1739777839746,3.78874,2685.1,2685.0,3.2078]
[1739777839955,3.044,2685.1,2685.0,3.95257]
[1739777840148,2.453,2685.1,2685.0,3.95257]
[1739777840343,0.75027597,2685.3,2685.1,0.74472]
[1739777840649,0.75027597,2685.3,2685.0,3.2078]
[1739777841048,0.00558597,2685.3,2685.1,0.74474]
[1739777841452,0.00558597,2685.3,2685.0,3.2078]
[1739777841945,0.00558597,2685.3,2685.1,0.74471]
[1739777842141,0.00558597,2685.3,2685.0,3.2078]
[1739777842353,0.74472,2685.2,2685.0,3.2078]
[1739777842647,0.74474,2685.1,2685.0,3.2078]
[1739777843045,3.85403141,2685.2,2684.7,3.2078]
[1739777843249,0.74482,2684.8,2684.7,3.2078]
[1739777843441,3.27783141,2684.9,2684.4,3.2078]
[1739777843639,0.7449,2684.5,2684.4,3.2078]
[1739777843843,3.1979,2684.5,2684.4,3.2078]
[1739777844043,3.7741,2684.5,2684.4,3.2078]
[1739777845654,2.453,2684.5,2684.4,3.2078]
[1739777845855,2.453,2684.6,2684.4,3.95272]
[1739777846450,2.453,2684.6,2684.4,3.2078]
[1739777846752,0.7449,2684.5,2684.4,3.2078]
[1739777847251,6.47572141,2684.6,2684.4,3.2078]
[1739777847451,5.73083141,2684.6,2684.4,3.2078]
[1739777847646,2.453,2684.6,2684.4,3.2078]
[1739777847842,0.5465,2684.7,2684.4,3.2078]
[1739777848056,0.5465,2684.7,2684.5,0.5735]
[1739777848057,2.9995,2684.7,2684.5,0.5735]
[1739777849259,3.74436,2684.7,2684.5,0.5735]
[1739777849448,0.74488,2684.6,2684.5,0.5735]
[1739777849648,0.7449,2684.5,2684.4,3.2078]
[1739777851849,0.74498,2684.3,2684.1,3.2078]
[1739777852057,0.5701,2684.2,2684.1,3.2078]
[1739777852357,1.31509,2684.2,2684.1,3.2078]
[1739777852855,1.88009,2684.2,2684.1,3.2078]
[1739777853352,1.1351,2684.2,2684.1,3.95282]
[1739777853749,0.565,2684.2,2684.1,3.95282]
[1739777854149,0.565,2684.2,2684.1,3.2078]
[1739777854558,2.453,2684.3,2684.2,0.74499]
[1739777855158,2.453,2684.6,2684.4,0.74492]
[1739777855359,0.5766,2684.7,2684.5,3.2078]
[1739777855554,3.0296,2684.7,2684.5,3.95269]
[1739777856258,3.0296,2684.7,2684.6,0.59]
[1739777856460,3.77445,2684.7,2684.6,0.59]
[1739777856658,0.74488,2684.6,2684.5,3.2078]
[1739777856961,3.0296,2684.7,2684.5,3.2078]
[1739777857163,3.77446,2684.7,2684.5,3.95269]
[1739777857362,3.77445,2684.7,2684.5,3.95269]
[1739777857863,3.0296,2684.7,2684.5,3.2078]
[1739777858360,3.0296,2684.7,2684.5,3.95269]
[1739777858665,0.5431,2684.8,2684.5,3.2078]
[1739777858851,4.35075,2685.1,2684.5,3.2078]
[1739777859056,0.74478,2685.0,2684.8,3.2078]
[1739777859459,0.74479,2684.9,2684.8,3.2078]
[1739777860465,4.35074,2685.1,2684.8,3.95261]
[1739777860665,3.606,2685.1,2684.8,3.7614]
[1739777860961,0.74479,2684.9,2684.8,3.7614]
[1739777861965,0.74479,2684.9,2684.8,3.2078]
[1739777866364,8.34766141,2684.9,2684.4,0.5823]
[1739777866568,0.74496,2684.3,2684.2,3.2078]
[1739777866964,3.5369,2684.5,2684.2,3.2078]
[1739777867170,45.08182,2684.5,2684.2,3.2078]
[1739777867366,3.5369,2684.5,2684.2,3.2078]
[1739777867565,3.5369,2684.5,2684.3,0.74495]
[1739777868068,3.5369,2684.5,2684.2,3.2078]
[1739777868069,0.74494,2684.4,2684.2,3.2078]
[1739777868270,2.9966,2684.5,2684.2,3.2078]
[1739777868474,2.9966,2684.5,2684.4,0.74493]
[1739777869072,5.368,2684.9,2684.6,0.74486]
[1739777869263,5.368,2684.9,2684.7,1.7122]
[1739777869264,2.453,2684.9,2684.7,1.7122]
[1739777869568,3.1978,2684.9,2684.7,1.7122]
[1739777869871,2.453,2684.9,2684.7,1.7122]
[1739777870471,2.453,2684.9,2684.7,2.45704]
[1739777870671,2.453,2684.9,2684.7,1.7122]
[1739777870967,3.2078,2685.1,2684.7,1.7122]
[1739777871167,1.1521,2685.2,2685.0,0.74477]
[1739777872365,1.1521,2685.2,2685.0,0.74476]
[1739777873175,0.00558597,2685.3,2684.9,3.2078]
[1739777873376,0.00558597,2685.3,2685.2,0.74471]
[1739777874071,0.00558597,2685.3,2685.2,3.95251]
[1739777880279,0.5639,2685.9,2685.2,13.6758787]
[1739777880476,0.5639,2685.9,2685.6,3.2078]
[1739777881079,0.74464,2685.7,2685.6,3.2078]
[1739777881580,0.56758901,2685.9,2685.6,11.2354192]
[1739777881779,1.31218901,2685.9,2685.6,11.9800592]
[1739777881977,1.31218901,2685.9,2685.7,0.74462]
[1739777882280,0.74463,2685.8,2685.6,11.9800792]
[1739777882476,0.56758901,2685.9,2685.6,11.2354192]
[1739777882677,1.31217901,2685.9,2685.7,0.74464]
[1739777882878,0.56758901,2685.9,2685.7,0.74464]
[1739777883195,0.56758901,2685.9,2685.8,0.74462]
[1739777883671,0.56758901,2685.9,2685.6,11.2354192]
[1739777884277,0.56758901,2685.9,2685.8,0.74462]
[1739777885379,0.00368901,2685.9,2685.8,0.74462]
[1739777885986,0.74827901,2685.9,2685.8,0.74462]
[1739777886171,0.00368901,2685.9,2685.8,0.5573]
[1739777886377,0.00368901,2685.9,2685.6,3.2078]
[1739777886683,0.74464,2685.7,2685.6,3.2078]
[1739777887080,1.33964,2685.7,2685.6,3.2078]
[1739777887282,0.7447,2685.5,2685.4,0.00558597]
[1739777888379,0.5527,2685.6,2685.4,0.00558597]
[1739777888579,0.5527,2685.6,2685.5,0.7447]
[1739777889279,0.5527,2685.6,2685.4,0.00558597]
[1739777889477,0.5527,2685.6,2685.4,0.75030597]
[1739777889675,0.5527,2685.6,2685.5,0.7447]
[1739777889875,1.29738,2685.6,2685.4,0.75029597]
[1739777890179,1.29738,2685.6,2685.4,0.00558597]
[1739777890380,0.7447,2685.5,2685.4,0.00558597]
[1739777892478,6.0,2685.5,2684.7,3.2078]
[1739777892692,0.74494,2684.7,2684.4,3.2078]
[1739777892978,0.5406,2684.6,2684.4,3.2078]
[1739777893881,2.452,2684.7,2684.4,3.2078]
[1739777894084,2.452,2684.7,2684.6,0.74495]
[1739777894586,2.452,2684.7,2684.4,3.2078]
[1739777894783,3.19694,2684.7,2684.4,3.2078]
[1739777894989,2.452,2684.7,2684.4,3.95279]
[1739777895290,2.452,2684.7,2684.5,0.74495]
[1739777895679,0.74496,2684.6,2684.4,3.2078]
[1739777896186,2.452,2684.7,2684.4,3.2078]
[1739777896385,3.19693,2684.7,2684.4,3.95279]
[1739777896685,0.74496,2684.6,2684.4,3.9528]
[1739777896885,2.452,2684.7,2684.5,0.74498]
[1739777897088,2.452,2684.7,2684.4,3.95279]
[1739777897278,2.452,2684.7,2684.4,3.2078]
[1739777897484,0.74496,2684.6,2684.4,3.2078]
[1739777897785,0.74498,2684.5,2684.4,3.2078]
[1739777897981,0.5394,2684.5,2684.4,3.2078]
[1739777898193,0.5394,2684.5,2684.4,3.9528]
[1739777898583,1.28438,2684.5,2684.4,3.2078]
[1739777898784,0.5394,2684.5,2684.4,3.2078]
[1739777898985,0.5394,2684.5,2684.4,3.9528]
[1739777901091,0.5394,2684.5,2684.4,3.2078]
[1739777901396,1.28438,2684.5,2684.4,3.2078]
[1739777905393,0.5394,2684.5,2684.2,0.00558597]
[1739777905698,0.74503,2684.3,2684.2,0.00558597]
[1739777905894,3.19703,2684.3,2684.2,0.00558597]
[1739777906293,3.73713,2684.3,2684.2,0.00558597]
[1739777907398,2.9921,2684.3,2684.2,0.00558597]
[1739777908198,3.73713,2684.3,2684.2,0.00558597]
[1739777908392,2.9921,2684.3,2684.2,0.00558597]
[1739777908793,0.5401,2684.3,2684.2,3.95844597]
[1739777908993,2.452,2684.3,2684.2,3.95844597]
[1739777910797,0.00558597,2684.5,2684.2,3.21338597]
[1739777910998,2.45858597,2684.5,2684.3,0.74503]
[1739777911399,2.45858597,2684.5,2684.2,3.21338597]
[1739777911595,0.74503,2684.3,2684.2,3.21338597]
[1739777911998,0.74503,2684.4,2684.2,3.95843597]
[1739777912198,0.74503,2684.3,2684.2,3.95844597]
[1739777912498,2.45858597,2684.5,2684.4,0.745]
[1739777913207,0.74503,2684.3,2684.2,3.21338597]
[1739777915291,0.00558597,2684.5,2684.2,3.21338597]
[1739777915490,0.00558597,2684.5,2684.4,0.745]
[1739777915696,0.00558597,2684.5,2684.3,0.74503]
[1739777915893,0.00558597,2684.5,2684.2,3.21338597]
[1739777916402,0.74503,2684.3,2684.2,3.21338597]
[1739777917803,0.74503,2684.3,2684.2,0.00558597]
[1739777917990,3.19803,2684.3,2684.2,0.00558597]
[1739777918405,3.73743,2684.3,2684.2,0.00558597]
[1739777925902,4.32923,2684.3,2684.2,0.00558597]
[1739777926305,4.32923,2684.3,2683.7,1.1314]
[1739777926306,0.74517,2683.8,2683.7,1.1314]
[1739777926805,0.7452,2683.7,2683.6,0.5727]
[1739777927103,1.3387,2683.7,2683.6,0.5727]
[1739777928806,0.5935,2683.7,2683.6,0.5727]
[1739777929008,2.453,2683.9,2683.6,0.5727]
[1739777929206,2.453,2683.9,2683.7,1.121]
[1739777929409,0.74517,2683.8,2683.7,1.121]
[1739777929799,2.453,2683.9,2683.7,1.121]
[1739777930215,0.74517,2683.8,2683.7,1.121]
[1739777930412,2.453,2683.9,2683.7,1.121]
[1739777930599,0.74517,2683.8,2683.7,1.121]
[1739777930803,2.453,2683.9,2683.7,1.121]
[1739777931006,3.2078,2684.2,2683.7,1.121]
[1739777931315,2.453,2684.1,2684.0,0.74512]
[1739777931810,3.86733141,2684.4,2683.8,3.95296]
[1739777932011,0.74511,2684.1,2683.8,3.95296]
[1739777932211,0.74513,2684.0,2683.8,3.95296]
[1739777932707,0.7451,2684.1,2683.9,0.74514]
[1739777933107,0.7451,2684.1,2684.0,0.5603]
[1739777933311,0.74507,2684.2,2684.0,1.30541]
[1739777933908,3.0144,2684.3,2684.0,0.5603]
[1739777934207,0.74509,2684.1,2684.0,0.5603]
[1739777934610,3.0144,2684.3,2684.0,0.5603]
[1739777934909,0.74508,2684.2,2684.0,1.30542]
[1739777935509,3.0144,2684.3,2684.0,0.5603]
[1739777935914,0.74509,2684.1,2684.0,0.5603]
[1739777937109,3.0144,2684.3,2684.0,0.5603]
[1739777937308,0.74508,2684.2,2684.0,1.30541]
[1739777937709,3.0144,2684.3,2684.0,1.30541]
[1739777937913,0.74508,2684.2,2684.0,1.30541]